bitfinex/quotes_SOLUSD_20220109
["timestamp","ask_amount","ask_price","bid_price","bid_amount"]
[1641762271909,10.433,143.82,143.74,540.88303286]
[1641762272305,72.37,143.85,143.74,540.88303286]
[1641762272504,23.2069,143.84,143.75,4.78082586]
[1641762273106,23.2069,143.84,143.76,0.25]
[1641762273405,23.2069,143.84,143.76,0.51]
[1641762273811,33.639,143.84,143.76,10.9414]
[1641762276314,23.2069,143.84,143.76,10.9414]
[1641762276513,13.19,143.87,143.77,3.0]
[1641762276715,24.0699,143.86,143.77,3.0]
[1641762276915,24.0699,143.86,143.78,0.51]
[1641762277313,13.19,143.87,143.78,0.51]
[1641762277514,3.25,143.87,143.79,25.76395503]
[1641762277915,3.25,143.87,143.8,0.51]
[1641762278114,3.25,143.87,143.8,3.51]
[1641762278314,26.4403,143.87,143.8,3.51]
[1641762278515,26.4403,143.87,143.8,5.248]
[1641762279215,26.4403,143.87,143.8,3.51]
[1641762279816,26.4403,143.87,143.82,10.4271]
[1641762280015,26.4403,143.87,143.83,0.26]
[1641762280218,26.4403,143.87,143.83,0.51]
[1641762280818,3.25,143.87,143.83,0.51]
[1641762281018,3.25,143.87,143.83,10.9361]
[1641762281221,3.25,143.87,143.83,10.6761]
[1641762281420,3.25,143.87,143.84,3.26]
[1641762281821,3.25,143.87,143.85,0.751601]
[1641762282022,3.25,143.87,143.85,14.176301]
[1641762282249,3.25,143.87,143.85,38.01781541]
[1641762282451,3.25,143.87,143.86,0.26]
[1641762283051,3.25,143.87,143.85,0.501601]
[1641762283850,39.56279892,143.86,143.82,10.9366]
[1641762284053,5.56279892,143.86,143.82,10.6766]
[1641762284252,3.25,143.87,143.82,10.6766]
[1641762285350,3.25,143.87,143.83,0.26]
[1641762285552,3.25,143.87,143.84,10.4251]
[1641762285752,3.25,143.87,143.85,0.501601]
[1641762285953,3.25,143.87,143.85,1.011601]
[1641762286553,3.25,143.87,143.86,0.26]
[1641762286956,3.25,143.87,143.86,23.75447242]
[1641762287153,3.25,143.87,143.86,23.74447242]
[1641762287353,3.25,143.87,143.86,23.75447242]
[1641762287556,3.25,143.87,143.86,26.75447242]
[1641762287752,3.25,143.87,143.86,37.42847242]
[1641762287953,3.25,143.87,143.86,34.42847242]
[1641762290556,3.25,143.87,143.86,37.42847242]
[1641762293159,3.25,143.87,143.86,34.42847242]
[1641762295763,3.25,143.87,143.86,34.16847242]
[1641762297185,3.25,143.87,143.86,34.42847242]
[1641762297467,3.25,143.87,143.86,10.934]
[1641762297767,30.25,143.87,143.86,10.674]
[1641762297967,33.28219997,143.87,143.85,0.501601]
[1641762298469,30.25,143.87,143.83,3.25]
[1641762298667,30.25,143.87,143.83,0.25]
[1641762299269,30.25,143.87,143.82,0.51]
[1641762299470,3.25,143.87,143.82,0.51]
[1641762300072,3.25,143.87,143.82,10.9369]
[1641762300275,3.25,143.87,143.82,10.6769]
[1641762301571,3.25,143.87,143.84,10.4254]
[1641762301973,5.78059895,143.87,143.85,0.761601]
[1641762302471,3.25,143.87,143.85,0.501601]
[1641762303375,5.78059895,143.87,143.85,0.501601]
[1641762303973,5.78059895,143.87,143.85,0.25]
[1641762304374,5.78059895,143.87,143.84,10.4254]
[1641762304777,3.25,143.87,143.85,0.501601]
[1641762305378,3.25,143.87,143.85,0.751601]
[1641762305676,6.28219997,143.87,143.85,0.751601]
[1641762305877,5.78059895,143.87,143.85,0.751601]
[1641762306378,5.78059895,143.87,143.85,0.501601]
[1641762306878,3.25,143.87,143.85,0.501601]
[1641762307379,5.56279892,143.86,143.85,0.501601]
[1641762307980,5.56279892,143.86,143.84,0.26]
[1641762308181,2.53059895,143.86,143.84,0.26]
[1641762308408,3.25,143.87,143.84,0.26]
[1641762308782,3.25,143.87,143.85,0.501601]
[1641762309185,3.25,143.87,143.85,0.751601]
[1641762310385,5.78059895,143.87,143.85,0.501601]
[1641762310587,3.03219997,143.86,143.82,10.4265]
[1641762310787,3.03219997,143.86,143.8,1.9490738]
[1641762311188,13.46189997,143.86,143.79,1.9490738]
[1641762311387,0.26,143.85,143.79,4.9490738]
[1641762311786,0.26,143.85,143.79,3.0]
[1641762311988,0.26,143.85,143.77,29.34858545]
[1641762312792,53.54955443,143.85,143.78,10.4293]
[1641762312988,53.54955443,143.85,143.78,10.6793]
[1641762313791,63.98005443,143.85,143.78,10.6793]
[1641762314189,0.26,143.84,143.78,10.6793]
[1641762314589,0.26,143.84,143.78,0.25]
[1641762314790,10.6913,143.84,143.78,0.25]
[1641762315190,10.6913,143.84,143.77,3.51]
[1641762315791,10.6913,143.84,143.76,19.63820128]
[1641762316031,10.4341,143.8,143.72,3.93419197]
[1641762316436,0.26,143.79,143.72,3.93419197]
[1641762316627,24.9461,143.81,143.73,26.54588894]
[1641762316827,25.2061,143.81,143.73,26.54588894]
[1641762317228,25.2061,143.81,143.74,0.25]
[1641762317829,10.435,143.79,143.74,0.25]
[1641762319034,10.435,143.79,143.74,0.51]
[1641762319728,10.435,143.79,143.74,0.25]
[1641762320331,10.435,143.79,143.74,0.51]
[1641762320533,10.435,143.79,143.74,0.25]
[1641762320733,23.5147,143.78,143.73,0.25]
[1641762321032,10.4363,143.77,143.71,0.51]
[1641762321232,10.4363,143.77,143.71,0.26]
[1641762321432,0.51,143.76,143.69,24.67241956]
[1641762321636,3.51,143.76,143.68,3.93419197]
[1641762321832,1.809,143.75,143.68,3.93419197]
[1641762322032,10.4409,143.72,143.68,3.93419197]
[1641762322232,10.4409,143.72,143.65,3.93419197]
[1641762322433,0.26,143.71,143.65,2.93419197]
[1641762322631,0.26,143.71,143.65,31.39421023]
[1641762323039,0.26,143.73,143.65,31.39421023]
[1641762323235,0.26,143.73,143.65,28.46001826]
[1641762323437,0.51,143.73,143.65,28.46001826]
[1641762323835,10.4418,143.71,143.65,28.46001826]
[1641762324237,0.26,143.7,143.66,0.25]
[1641762324834,0.26,143.7,143.63,0.51]
[1641762325837,0.26,143.7,143.63,25.47575463]
[1641762326939,0.26,143.7,143.62,10.4409]
[1641762327868,0.26,143.7,143.63,25.5211125]
[1641762328272,24.5772,143.71,143.64,0.51]
[1641762328470,3.0,143.74,143.64,2.29082586]
[1641762328670,36.7683,143.74,143.64,2.29082586]
[1641762329075,60.38454081,143.74,143.64,2.29082586]
[1641762329671,0.26,143.73,143.64,2.29082586]
[1641762330771,0.26,143.73,143.64,12.73042586]
[1641762332874,0.26,143.73,143.64,12.48042586]
[1641762333374,0.26,143.73,143.65,12.22002586]
[1641762333775,0.26,143.73,143.66,0.26]
[1641762334174,10.7003,143.73,143.66,0.25]
[1641762334575,10.7003,143.73,143.64,0.25]
[1641762334778,10.7003,143.73,143.63,35.9614125]
[1641762334976,0.25,143.72,143.63,35.9614125]
[1641762335678,0.25,143.72,143.64,0.26]
[1641762335884,10.6912,143.72,143.63,35.9614125]
[1641762336478,0.26,143.71,143.63,35.9614125]
[1641762336678,0.26,143.71,143.63,10.4403]
[1641762337383,0.26,143.71,143.64,0.25]
[1641762337583,0.26,143.71,143.64,0.51]
[1641762338985,33.7683,143.74,143.64,10.9499]
[1641762339185,33.7683,143.74,143.65,1.78082586]
[1641762339386,23.8283,143.74,143.66,0.51]
[1641762340185,23.8283,143.74,143.66,0.25]
[1641762340383,50.70385481,143.74,143.66,0.25]
[1641762340584,50.70385481,143.74,143.64,0.51]
[1641762340785,50.70385481,143.74,143.67,10.4379]
[1641762340986,50.70385481,143.74,143.68,0.51]
[1641762341185,23.8283,143.74,143.68,0.51]
[1641762341685,111.6013,143.77,143.68,2.03082586]
[1641762341885,101.6613,143.77,143.69,0.26]
[1641762342285,101.6613,143.77,143.69,30.78745908]
[1641762342485,101.6613,143.77,143.7,0.25]
[1641762342688,22.6945,143.77,143.7,0.25]
[1641762342985,33.7202,143.8,143.7,0.25]
[1641762343187,0.26,143.79,143.7,10.6855]
[1641762343386,0.26,143.79,143.71,0.26]
[1641762343786,0.26,143.79,143.71,2.04082586]
[1641762343984,0.26,143.79,143.72,0.25]
[1641762344387,0.26,143.79,143.7,0.26]
[1641762344589,0.26,143.79,143.7,3.26]
[1641762344789,0.26,143.79,143.71,10.4344]
[1641762345591,3.26,143.79,143.71,10.4344]
[1641762345791,3.26,143.79,143.72,0.25]
[1641762346993,3.26,143.79,143.71,10.4344]
[1641762347193,13.6957,143.79,143.7,3.26]
[1641762347396,0.25,143.78,143.69,10.4359]
[1641762347598,22.9036,143.78,143.7,0.25]
[1641762347996,0.26,143.77,143.7,0.25]
[1641762348594,10.2,143.77,143.7,0.25]
[1641762349196,0.26,143.77,143.7,0.25]
[1641762349495,10.2,143.77,143.7,0.25]
[1641762349701,0.26,143.77,143.7,0.25]
[1641762350098,10.2,143.77,143.7,0.25]
[1641762350902,9.94,143.77,143.7,0.25]
[1641762351102,22.6536,143.78,143.7,0.25]
[1641762351300,22.6536,143.78,143.7,0.51]
[1641762351699,33.0899,143.78,143.7,0.51]
[1641762352403,0.26,143.77,143.7,0.51]
[1641762352803,22.6536,143.78,143.7,10.9454]
[1641762353005,22.6536,143.78,143.71,0.26]
[1641762353204,22.6536,143.78,143.71,0.51]
[1641762353622,22.6536,143.78,143.71,0.26]
[1641762353924,0.26,143.77,143.67,1.78082586]
[1641762354126,0.58,143.77,143.67,1.78082586]
[1641762354327,9.94,143.76,143.66,72.2309]
[1641762354526,28.0229,143.75,143.67,0.25]
[1641762354726,37.9629,143.75,143.67,0.25]
[1641762355327,48.4018,143.75,143.66,99.59791301]
[1641762355727,34.7029,143.75,143.66,101.37873887]
[1641762356830,34.7029,143.75,143.69,10.4363]
[1641762357232,34.7029,143.75,143.7,0.51]
[1641762359034,34.7029,143.75,143.7,0.25]
[1641762359533,9.94,143.75,143.7,10.6857]
[1641762359733,37.26919871,143.81,143.7,10.4357]
[1641762359934,24.4325,143.8,143.72,26.87255154]
[1641762360334,24.1725,143.8,143.73,0.25]
[1641762360735,24.1725,143.8,143.7,10.4352]
[1641762360736,34.6071,143.8,143.7,10.4352]
[1641762360944,34.6071,143.8,143.71,0.51]
[1641762361136,34.6071,143.8,143.71,0.25]
[1641762361536,0.26,143.79,143.71,0.25]
[1641762361736,3.26,143.79,143.68,4.78082586]
[1641762361939,23.8012,143.78,143.68,3.0]
[1641762362338,3.26,143.77,143.68,3.0]
[1641762362738,10.4392,143.74,143.67,3.0]
[1641762363141,10.4392,143.74,143.68,0.25]
[1641762363341,10.4392,143.74,143.67,0.51]
[1641762363640,33.487,143.74,143.67,0.51]
[1641762364040,33.487,143.74,143.67,2.29082586]
[1641762364440,10.4392,143.74,143.67,2.29082586]
[1641762364668,10.4381,143.75,143.67,2.29082586]
[1641762365743,10.4381,143.75,143.67,12.72872586]
[1641762367043,135.94429022,143.77,143.67,12.72872586]
[1641762367844,22.7639,143.76,143.67,12.72872586]
[1641762373077,3.0,143.75,143.67,12.72872586]
[1641762373779,3.0,143.75,143.68,14.3761452]
[1641762373979,3.0,143.75,143.69,0.25]
[1641762374782,22.7639,143.76,143.69,0.25]
[1641762375379,22.7639,143.76,143.69,0.51]
[1641762375580,3.0,143.75,143.69,0.51]
[1641762376280,3.0,143.75,143.67,1.78082586]
[1641762376482,10.2,143.74,143.66,82.6689]
[1641762376679,9.94,143.74,143.67,0.51]
[1641762376882,3.0,143.73,143.67,0.51]
[1641762377080,3.0,143.73,143.67,2.03082586]
[1641762377581,3.0,143.75,143.67,0.25]
[1641762377780,3.0,143.75,143.67,10.6878]
[1641762377979,43.142,143.76,143.67,10.6878]
[1641762378182,0.26,143.75,143.67,10.6878]
[1641762378382,3.26,143.75,143.67,10.6878]
[1641762379381,3.26,143.75,143.68,0.26]
[1641762379981,3.26,143.75,143.68,10.6972]
[1641762380181,3.26,143.75,143.69,0.25]
[1641762380780,0.26,143.75,143.69,0.25]
[1641762382582,10.6982,143.75,143.69,0.25]
[1641762382782,24.8055,143.74,143.69,0.25]
[1641762382982,24.8055,143.74,143.67,0.51]
[1641762383784,24.8055,143.74,143.67,10.9479]
[1641762383984,22.57299022,143.77,143.67,12.72872586]
[1641762384182,9.94,143.78,143.68,32.56996167]
[1641762384386,22.6462,143.8,143.69,0.51]
[1641762384585,108.0683,143.82,143.69,0.51]
[1641762384784,24.5945,143.81,143.74,10.4329]
[1641762384985,24.5945,143.81,143.75,0.51]
[1641762385185,48.57855148,143.81,143.75,0.51]
[1641762388087,24.5945,143.81,143.75,0.51]
[1641762388587,23.0724,143.82,143.75,12.72292586]
[1641762388788,23.0724,143.82,143.75,12.21292586]
[1641762389089,23.0724,143.82,143.76,0.51]
[1641762389687,23.0724,143.82,143.76,0.25]
[1641762389889,23.0724,143.82,143.75,0.51]
[1641762390699,23.0724,143.82,143.74,5.248]
[1641762390930,23.0724,143.82,143.76,10.4314]
[1641762391296,23.0724,143.82,143.77,0.26]
[1641762391490,23.0724,143.82,143.77,0.51]
[1641762392392,23.0724,143.82,143.75,0.51]
[1641762393294,23.0724,143.82,143.75,10.9422]
[1641762393493,23.0724,143.82,143.76,0.51]
[1641762394195,0.26,143.81,143.75,10.4322]
[1641762394396,0.26,143.81,143.73,12.171]
[1641762394697,24.5644,143.81,143.74,0.25]
[1641762395996,24.6344,143.81,143.71,76.4088]
[1641762396196,0.07,143.79,143.67,30.09166818]
[1641762396396,9.94,143.78,143.67,1.78082586]
[1641762396597,22.6222,143.77,143.67,1.78082586]
[1641762396798,23.44594663,143.76,143.67,1.78082586]
[1641762397097,0.26,143.75,143.67,1.78082586]
[1641762397295,0.26,143.75,143.69,10.4358]
[1641762397897,0.26,143.75,143.7,0.25]
[1641762398996,0.26,143.75,143.67,10.9474]
[1641762399395,0.26,143.75,143.67,12.72822586]
[1641762401299,10.6981,143.75,143.67,12.72822586]
[1641762401499,35.5776,143.75,143.67,12.72822586]
[1641762401901,25.1395,143.75,143.67,12.72822586]
[1641762402103,25.1395,143.75,143.67,37.41174397]
[1641762402502,24.8795,143.75,143.67,37.41174397]
[1641762403501,20.3757,143.78,143.68,3.0]
[1641762403702,20.3757,143.78,143.69,10.4358]
[1641762403901,0.25,143.77,143.69,10.9458]
[1641762404103,10.6961,143.77,143.7,3.0]
[1641762404301,33.5996,143.77,143.7,3.0]
[1641762404506,33.5996,143.77,143.71,0.25]
[1641762404907,33.5996,143.77,143.69,3.0]
[1641762405105,33.5996,143.77,143.68,3.0]
[1641762405304,33.5996,143.77,143.68,3.25]
[1641762405926,33.5996,143.77,143.69,0.26]
[1641762406327,33.5996,143.77,143.68,0.51]
[1641762408428,33.5996,143.77,143.68,10.9468]
[1641762408628,33.5996,143.77,143.68,10.4368]
[1641762408831,33.5996,143.77,143.69,0.51]
[1641762409529,33.5996,143.77,143.69,0.25]
[1641762409829,43.5396,143.77,143.69,0.25]
[1641762410032,43.5396,143.77,143.67,0.51]
[1641762410430,43.5396,143.77,143.67,0.25]
[1641762410632,0.07,143.75,143.65,1.78082586]
[1641762410832,10.4405,143.71,143.64,72.6675]
[1641762411233,33.81182116,143.71,143.64,72.6675]
[1641762412036,10.4405,143.71,143.65,0.25]
[1641762412234,10.4405,143.71,143.65,0.51]
[1641762412432,34.1595,143.73,143.65,0.51]
[1641762414237,23.7194,143.73,143.65,10.9494]
[1641762416440,23.7194,143.73,143.65,10.4394]
[1641762416638,0.51,143.72,143.64,72.6675]
[1641762417540,0.26,143.72,143.64,72.6675]
[1641762417741,10.4403,143.72,143.64,83.1076]
[1641762418141,33.6594,143.73,143.64,83.1076]
[1641762418643,9.94,143.73,143.65,0.25]
[1641762418842,9.94,143.73,143.65,0.51]
[1641762419044,9.94,143.73,143.65,3.93239236]
[1641762419246,10.441,143.71,143.65,3.93239236]
[1641762419646,0.26,143.7,143.65,3.93239236]
[1641762419845,0.26,143.7,143.61,3.93418288]
[1641762420047,9.94,143.69,143.61,3.93418288]
[1641762420247,23.7011,143.68,143.61,3.93418288]
[1641762420448,23.9611,143.68,143.61,3.93418288]
[1641762420648,55.62196804,143.68,143.59,3.93418288]
[1641762421648,55.62196804,143.68,143.59,3.93513224]
[1641762422450,9.94,143.67,143.59,3.93513224]
[1641762422752,12.94,143.67,143.59,3.93513224]
[1641762422948,0.26,143.66,143.58,78.4974]
[1641762423348,10.4461,143.64,143.58,78.4974]
[1641762423750,10.4461,143.64,143.59,0.25]
[1641762424678,10.7052,143.66,143.59,0.25]
[1641762425150,0.26,143.66,143.59,0.25]
[1641762426952,10.4453,143.65,143.59,0.25]
[1641762427152,9.94,143.67,143.59,0.51]
[1641762428252,20.3844,143.67,143.59,10.9536]
[1641762428455,0.26,143.66,143.59,10.9536]
[1641762428651,55.36196804,143.68,143.59,10.9536]
[1641762429053,23.7011,143.68,143.59,10.9536]
[1641762429854,0.26,143.67,143.59,10.9536]
[1641762430458,55.15521629,143.68,143.59,10.9536]
[1641762430656,55.15521629,143.68,143.61,10.442]
[1641762430857,55.15521629,143.68,143.62,0.25]
[1641762431056,55.15521629,143.68,143.62,0.51]
[1641762431557,55.15521629,143.68,143.62,0.25]
[1641762431558,65.59831629,143.68,143.62,0.25]
[1641762432257,65.59831629,143.68,143.6,10.6931]
[1641762432455,65.59831629,143.68,143.61,0.26]
[1641762434062,34.1442,143.68,143.61,0.26]
[1641762434265,9.94,143.69,143.61,0.26]
[1641762434266,9.94,143.69,143.61,10.7023]
[1641762434465,9.94,143.69,143.62,0.25]
[1641762434962,9.94,143.69,143.62,3.25]
[1641762435162,9.94,143.69,143.63,26.24417366]
[1641762435361,9.94,143.69,143.64,0.25]
[1641762435565,9.94,143.69,143.64,0.51]
[1641762435963,1.74,143.75,143.64,3.51]
[1641762436165,23.0701,143.73,143.64,3.51]
[1641762436363,23.0701,143.73,143.64,5.47379086]
[1641762436563,84.6508,143.76,143.64,7.25461672]
[1641762436763,0.26,143.75,143.64,109.36061672]
[1641762437364,0.26,143.75,143.67,1.96379086]
[1641762437562,0.26,143.75,143.68,12.176]
[1641762437763,0.26,143.75,143.68,12.686]
[1641762438665,0.26,143.75,143.69,24.81260398]
[1641762438864,0.26,143.75,143.7,0.25]
[1641762439064,24.2742,143.78,143.7,3.51]
[1641762439892,29.24012998,143.77,143.7,3.51]
[1641762440894,29.24012998,143.77,143.7,13.9451]
[1641762441095,34.7101,143.78,143.7,13.9451]
[1641762441294,24.2742,143.78,143.7,13.9451]
[1641762442094,24.2742,143.78,143.7,42.90346696]
[1641762446498,24.2742,143.78,143.7,42.64346696]
[1641762446699,24.2742,143.78,143.7,13.6851]
[1641762446901,0.26,143.77,143.7,13.6851]
[1641762447100,0.26,143.77,143.7,10.6851]
[1641762447301,24.2742,143.78,143.7,10.6851]
[1641762447500,0.51,143.77,143.7,0.25]
[1641762447699,0.26,143.77,143.68,10.4365]
[1641762447902,0.26,143.77,143.69,0.51]
[1641762448500,10.4368,143.77,143.69,12.72722586]
[1641762448705,34.2142,143.78,143.69,12.46722586]
[1641762448900,24.2742,143.78,143.7,0.26]
[1641762449600,24.2742,143.78,143.7,5.04082586]
[1641762449801,24.2742,143.78,143.71,10.6847]
[1641762450000,24.2742,143.78,143.72,0.26]
[1641762451208,24.2742,143.78,143.72,38.06543757]
[1641762451406,24.2742,143.78,143.73,0.25]
[1641762453207,34.0,143.77,143.72,9.9443]
[1641762455112,34.0,143.77,143.7,38.51892364]
[1641762455312,34.0,143.77,143.71,0.25]
[1641762456413,34.0,143.77,143.71,0.51]
[1641762457513,34.0,143.77,143.71,0.25]
[1641762457713,0.26,143.76,143.71,0.25]
[1641762458116,34.0,143.77,143.71,0.25]
[1641762459214,34.0,143.77,143.71,0.51]
[1641762459415,24.2742,143.78,143.71,10.945]
[1641762460516,24.2742,143.78,143.72,3.0]
[1641762460815,24.2742,143.78,143.73,10.433]
[1641762461017,24.2742,143.78,143.73,10.943]
[1641762466019,24.2742,143.78,143.73,0.25]
[1641762466219,0.26,143.77,143.73,0.25]
[1641762466423,0.26,143.77,143.72,4.96379086]
[1641762466622,0.26,143.77,143.72,1.96379086]
[1641762467021,0.26,143.77,143.71,1.96379086]
[1641762467721,10.6962,143.77,143.71,1.96379086]
[1641762467920,0.26,143.77,143.71,1.96379086]
[1641762468522,0.26,143.77,143.7,85.66259086]
[1641762469326,0.26,143.77,143.71,0.25]
[1641762469824,0.26,143.77,143.71,2.21379086]
[1641762470423,34.71,143.78,143.71,2.21379086]
[1641762471427,34.71,143.78,143.72,0.26]
[1641762471625,24.2742,143.78,143.72,0.26]
[1641762476157,24.2742,143.78,143.72,3.26]
[1641762476757,24.2742,143.78,143.73,0.25]
[1641762477863,34.7095,143.78,143.72,1.96379086]
[1641762478058,0.26,143.77,143.72,1.96379086]
[1641762478459,0.26,143.77,143.7,1.96379086]
[1641762478659,24.2742,143.78,143.7,2.21379086]
[1641762478859,24.2742,143.78,143.7,12.64909086]
[1641762479260,24.2742,143.78,143.71,1.96379086]
[1641762479561,24.2742,143.78,143.72,0.25]
[1641762479763,24.2742,143.78,143.72,0.51]
[1641762480464,24.2742,143.78,143.72,2.47379086]
[1641762480662,24.2742,143.78,143.72,1.96379086]
[1641762480861,24.2742,143.78,143.73,0.51]
[1641762481062,24.2742,143.78,143.73,0.26]
[1641762481265,34.7096,143.78,143.73,0.26]
[1641762481763,0.25,143.77,143.73,0.26]
[1641762482266,0.25,143.77,143.71,2.47379086]
[1641762482665,34.7096,143.78,143.71,0.51]
[1641762483766,34.7096,143.78,143.71,2.47379086]
[1641762484067,1.91321661,143.81,143.72,4.78082586]
[1641762484467,1.91321661,143.81,143.73,0.51]
[1641762484769,1.91321661,143.81,143.73,12.23082586]
[1641762484969,1.91321661,143.81,143.74,29.08229578]
[1641762485168,1.91321661,143.81,143.78,10.4283]
[1641762485468,3.69578564,143.84,143.79,44.011601]
[1641762485668,1.97091108,143.85,143.79,48.29082586]
[1641762486067,1.97091108,143.85,143.8,1.78082586]
[1641762486470,3.25,143.87,143.82,10.4256]
[1641762486669,3.25,143.87,143.81,0.51]
[1641762486868,3.25,143.87,143.81,0.25]
[1641762487372,3.25,143.87,143.8,0.51]
[1641762488172,3.25,143.87,143.8,10.9378]
[1641762488672,3.25,143.87,143.8,10.6878]
[1641762488872,3.25,143.87,143.81,0.25]
[1641762491375,3.25,143.87,143.8,0.26]
[1641762491777,3.25,143.87,143.78,13.9394]
[1641762492277,27.4352,143.87,143.78,13.9394]
[1641762494278,26.9352,143.87,143.78,13.9394]
[1641762495088,2.75,143.87,143.78,15.72022586]
[1641762496383,2.75,143.87,143.78,25.40022586]
[1641762497784,2.75,143.87,143.79,0.26]
[1641762497983,2.75,143.87,143.82,10.427]
[1641762498384,2.75,143.87,143.83,0.26]
[1641762498583,2.75,143.87,143.82,10.427]
[1641762499482,2.75,143.87,143.8,10.428]
[1641762499910,2.75,143.87,143.81,0.25]
[1641762500113,0.26,143.86,143.81,0.25]
[1641762501013,0.26,143.86,143.79,0.25]
[1641762502916,0.26,143.86,143.78,1.78082586]
[1641762503115,11.0108,143.86,143.76,79.9895]
[1641762503315,14.0108,143.86,143.76,79.9895]
[1641762503515,23.9508,143.86,143.76,79.9895]
[1641762503915,22.9793,143.85,143.72,24.25821545]
[1641762504214,10.4323,143.84,143.72,24.25821545]
[1641762504415,10.4323,143.84,143.73,2.03082586]
[1641762504616,10.4323,143.84,143.73,5.03082586]
[1641762504822,10.4323,143.84,143.74,1.78082586]
[1641762505015,22.9793,143.85,143.75,3.0]
[1641762505221,22.9793,143.85,143.75,3.25]
[1641762505419,22.9793,143.85,143.76,0.26]
[1641762506919,22.9793,143.85,143.77,10.4306]
[1641762507319,22.9793,143.85,143.78,0.51]
[1641762508424,0.25,143.84,143.78,0.51]
[1641762508626,22.9793,143.85,143.78,0.51]
[1641762508827,33.4105,143.85,143.78,0.51]
[1641762511730,22.9793,143.85,143.78,0.51]
[1641762513233,22.9793,143.85,143.78,10.9399]
[1641762513431,22.9793,143.85,143.79,0.51]
[1641762515036,22.9793,143.85,143.79,0.25]
[1641762515237,22.9793,143.85,143.77,0.51]
[1641762515436,33.4105,143.85,143.77,0.51]
[1641762515938,0.26,143.84,143.77,0.51]
[1641762516938,10.6917,143.84,143.77,0.51]
[1641762521070,10.4317,143.84,143.77,0.26]
[1641762521268,10.4317,143.84,143.76,74.7071]
[1641762522368,0.51,143.83,143.74,10.4322]
[1641762522568,28.91738096,143.82,143.75,0.51]
[1641762522768,28.91738096,143.82,143.75,0.26]
[1641762523970,28.91738096,143.82,143.75,0.51]
[1641762524769,28.91738096,143.82,143.75,10.432]
[1641762524971,28.91738096,143.82,143.76,0.51]
[1641762526876,35.1697,143.83,143.76,0.51]
[1641762528980,34.9197,143.83,143.76,0.51]
[1641762529180,34.6597,143.83,143.76,0.26]
[1641762529380,34.6597,143.83,143.76,0.51]
[1641762531590,24.2268,143.83,143.76,10.941]
[1641762531787,24.2268,143.83,143.76,10.431]
[1641762531987,24.2268,143.83,143.77,0.51]
[1641762532387,24.2268,143.83,143.77,0.25]
[1641762532788,24.2268,143.83,143.78,31.76217496]
[1641762532990,24.2268,143.83,143.79,0.51]
[1641762533286,2.75,143.87,143.79,0.51]
[1641762533493,25.993,143.87,143.79,3.51]
[1641762533890,25.993,143.87,143.79,13.9389]
[1641762534892,36.4223,143.87,143.79,10.6889]
[1641762535793,0.25,143.86,143.8,0.25]
[1641762535994,10.43,143.86,143.8,0.25]
[1641762536394,10.43,143.86,143.79,0.51]